Workbook

Sheet SM-sarja
B1: Heikki Virtanen | E1: 3.2.1944 Hiitola
B2: MESTARUUSSARJA | E2: Runkosarja | I2: Kärkilyönnit (KL), pesänvälit | P2: Runkosarja TOP-30 | U2: Ylempi loppusarja | AA2: Alempi loppusarja | AH2: Arvo-ottelut | AK2: Mitalit
B3: Vuosi | C3: Sija | D3: Seura | E3: OTT | F3: KUN | G3: LÖI | H3: TOI | I3: KL | J3: 0 > 1 | K3: 1 > 2 | L3: 2 > 3 | M3: 3 > k | N3: KL-% | P3: LÖI | Q3: TOI | R3: L+T | S3: KL | U3: OTT | V3: KUN | W3: LÖI | X3: TOI | Y3: KL | AA3: OTT | AB3: KUN | AC3: LÖI | AD3: TOI | AE3: KL | AG3: IL | AH3: LL | AI3: Cup | AJ3: K | AK3: H | AL3: P
B4: 1962 | C4: 3. | D4: UPV | F4: suomensarja
B5: 1963 | C5: 1. | D5: UPV | F5: suomensarja
B6: 1964 | C6: 11. | D6: UPV | E6: 9 | F6: 0 | G6: 2 | H6: 4
B7: 1965 | C7: 1. | D7: UPV | F7: suomensarja
B8: 1966 | C8: 5. | D8: UPV | E8: 21 | F8: 0 | G8: 11 | H8: 25 | Q8: 20.
B9: 1967 | C9: 2. | D9: UPV | E9: 22 | F9: 0 | G9: 5 | H9: 14 | AK9: 1
B10: 1968 | C10: 2. | D10: UPV | E10: 21 | F10: 0 | G10: 9 | H10: 10 | AK10: 1
B11: 1969 | C11: 6. | D11: UPV | E11: 22 | F11: 1 | G11: 14 | H11: 16
B12: 1970 | C12: 1. | D12: UPV | E12: 22 | F12: 3 | G12: 22 | H12: 13 | P12: 13. | AI12: 1 | AJ12: 1
B13: 1971 | C13: 6. | D13: UPV | E13: 17 | F13: 1 | G13: 11 | H13: 9
B14: 1972 | C14: 5. | D14: UPV | E14: 20 | F14: 1 | G14: 10 | H14: 10 | AI14: 1
B15: 1973 | C15: 2. | D15: UPV | E15: 22 | F15: 1 | G15: 16 | H15: 23 | P15: 28. | Q15: 18. | R15: 15. | AK15: 1
B16: 1974 | C16: 7. | D16: UPV | E16: 15 | F16: 0 | G16: 8 | H16: 4
B17: 1975 | C17: 9. | D17: UPV | E17: 22 | F17: 1 | G17: 12 | H17: 4
B18: Yhteensä | E18: =SUM(E6:E17) -> 213 | F18: 8 | G18: 120 | H18: 132 | N18: ----- | P18: 0-0-0 | Q18: 0-0-0 | R18: 0-0-0 | S18: 0-0-0 | U18: =SUM(U4:U17) -> 0 | V18: 0 | W18: 0 | X18: 0 | Y18: 0 | AA18: 0 | AB18: 0 | AC18: 0 | AD18: 0 | AE18: 0 | AG18: 0 | AH18: 0 | AI18: 2 | AJ18: 1 | AK18: 3 | AL18: 0
B19: Pesispörssi | D19: 619.3
B21: URA SM-SARJASSA | E21: OTT | F21: KUN | G21: LÖI | H21: TOI | I21: KL | K21: ka/L | L21: ka/T | M21: ka/KL | N21: KL-% | P21: ENSIMMÄISET MESTARUUSSARJASSA
B22: Runkosarja | E22: =PRODUCT(E18) -> 213 | F22: =PRODUCT(F18) -> 8 | G22: =PRODUCT(G18) -> 120 | H22: =PRODUCT(H18) -> 132 | K22: =PRODUCT((F22+G22)/E22) -> 0.60 | L22: =PRODUCT(H22/E22) -> 0.62 | P22: Ottelu | R22: 03.05. 1964 UPV - KPL 3-3 | AA22: 1. ottelu | AD22: 20 v 0 kk 3 pv
B23: Ylempi loppusarja | P23: Lyöty | R23: 30.08. 1964 UPV - SoJy 13-4 | AA23: 6. ottelu | AD23: 20 v 6 kk 27 pv
B24: Alempi loppusarja | P24: Tuotu | R24: 07.05. 1964 PuMu - UPV 15-6 | AA24: 2. ottelu | AD24: 20 v 0 kk 7 pv
B25: KAIKKI | E25: =SUM(E22:E24) -> 213 | F25: =SUM(F22:F24) -> 8 | G25: =SUM(G22:G24) -> 120 | H25: =SUM(H22:H24) -> 132 | K25: =PRODUCT((F25+G25)/E25) -> 0.60 | L25: =PRODUCT(H25/E25) -> 0.62 | P25: Kunnari | R25: 07.09. 1969 HP - UPV 16-11 | AA25: 93. ottelu | AD25: 25 v 7 kk 4 pv
B27: Seurat | D27: UPV = Ulvilan Pesä-Veikot (1957)
B29: RUNKOSARJA, KA / OTT | F29: IKÄ | G29: OTT | H29: LÖI | I29: TOI | J29: TEHO | K29: KL | M29: SIJOITUS | P29: OTT | Q29: LÖI | R29: TOI | S29: TEHO | U29: KL | W29: RUNKOSARJA, TASASATASET, ka. / peli
B30: 1964 | C30: 11. | D30: UPV | F30: 20 | G30: 9 | H30: =PRODUCT((F6+G6)/E6) -> 0.22 | I30: =PRODUCT(H6/E6) -> 0.44 | J30: =PRODUCT(H30+I30) -> 0.67 | M30: 1945 - 1964 | P30: 416. | Q30: 416. | R30: 387. | S30: 408. | W30: Ottelutilasto
B31: 1965 | F31: 21 | M31: 1945 - 1965 | P31: 451. | Q31: 455. | R31: 419. | S31: 446. | W31: 200 | Y31: 25. 04.06. 1975 Kiri - UPV 12-4 | AH31: 31 v 4 kk 1 pv
B32: 1966 | C32: 5. | D32: UPV | F32: 22 | G32: 21 | H32: =PRODUCT((F8+G8)/E8) -> 0.52 | I32: =PRODUCT(H8/E8) -> 1.19 | J32: =PRODUCT(H32+I32) -> 1.71 | M32: 1945 - 1966 | P32: 286. | Q32: 296. | R32: 215. | S32: 253.
B33: 1967 | C33: 2. | D33: UPV | F33: 23 | G33: 22 | H33: 0.23 | I33: 0.64 | J33: 0.86 | M33: 1945 - 1967 | O33: 21 | P33: 221. | Q33: 267. | R33: 181. | S33: 224.
B34: 1968 | C34: 2. | D34: UPV | F34: 24 | G34: 21 | H34: 0.43 | I34: 0.48 | J34: 0.90 | M34: 1945 - 1968 | O34: 21 | P34: 167. | Q34: 230. | R34: 161. | S34: 204. | W34: KATSOJIA YLI 5000
B35: 1969 | C35: 6. | D35: UPV | F35: 25 | G35: 22 | H35: 0.68 | I35: 0.73 | J35: 1.41 | M35: 1945 - 1969 | O35: 21 | P35: 117. | Q35: 183. | R35: 118. | S35: 146. | W35: 7013 | Y35: 5. 25.07. 1973 UPV - KaMa 4-2
B36: 1970 | C36: 1. | D36: UPV | F36: 26 | G36: 22 | H36: 1.14 | I36: 0.59 | J36: 1.73 | M36: 1945 - 1970 | P36: 86. | Q36: 116. | R36: 102. | S36: 107. | W36: 5764 | Y36: 21. 18.08. 1968 UPV - KPL 7-4
B37: 1971 | C37: 6. | D37: UPV | F37: 27 | G37: 17 | H37: 0.71 | I37: 0.53 | J37: 1.24 | M37: 1945 - 1971 | P37: 71. | Q37: 95. | R37: 99. | S37: 103. | W37: 5200 | Y37: 47. 22.07. 1973 SMJ - UPV 4-1
B38: 1972 | C38: 5. | D38: UPV | F38: 28 | G38: 20 | H38: 0.55 | I38: 0.50 | J38: 1.05 | M38: 1945 - 1972 | P38: 55. | Q38: 90. | R38: 107. | S38: 102. | W38: 5061 | Y38: 65. 24.05. 1970 UPV - KPL 4-2
B39: 1973 | C39: 2. | D39: UPV | F39: 29 | G39: 22 | H39: 0.77 | I39: 1.05 | J39: 1.82 | M39: 1945 - 1973 | P39: 41. | Q39: 75. | R39: 86. | S39: 78.
B40: 1974 | C40: 7. | D40: UPV | F40: 30 | G40: 15 | H40: 0.53 | I40: 0.27 | J40: 0.80 | M40: 1945 - 1974 | P40: 31. | Q40: 68. | R40: 85. | S40: 78.
B41: 1975 | C41: 9. | D41: UPV | F41: 31 | G41: 22 | H41: 0.59 | I41: 0.18 | J41: 0.77 | M41: 1945 - 1975 | P41: 17. | Q41: 58. | R41: 83. | S41: 69.
